Cogmind - Beta 11 @@@ ROGUE MODE // 2022.04.13 @ 00:27:41 Player: Momo Result: Destroyed by P-70 Sage with High-powered Shock Rifle Performance ------------- Evolutions (5) 2500 Regions Visited (17) 3400 Robots Destroyed (94) 470 Value Destroyed (3285) 3285 Prototype IDs (16) 320 Alien Tech Used (0) 0 Bonus (2827) 2827 TOTAL SCORE: 12802 Bonus ------- High Alert Combat Kills 383 Follower Combat Kills 2079 Network Hubs Disabled 200 Met Data Miner 300 Built Enhanced Grunts 300 Met R17 at Cetus 500 Friendly Fire -935 Cogmind --------- Core Integrity 0/1000 Matter 300/300 Energy 99/100 System Corruption 6% Temperature Cool (0) Movement Core (50) Location -5/Factory Parts ------- > --- POWER (2) -------- (None) > --- PROPULSION (8) --- (None) > --- UTILITY (5) ------ (None) > --- WEAPON (2) ------- (None) > --- INVENTORY (5) ---- Quantum Reactor Advanced Weight Redist. System Improved Sensor Array Centrium Medium Armor Plating Force Field Peak State ------------ > --- POWER ------------ Quantum Reactor Quantum Reactor > --- PROPULSION ------- Carbon-fiber Leg Carbon-fiber Leg Carbon-fiber Leg Carbon-fiber Leg Flexi-carbon Leg Flexi-carbon Leg Antigrav System Antigrav System > --- UTILITY ---------- Medium Storage Unit Advanced Signal Interpreter Improved Weapon Cycler Centrium Medium Armor Plating Experimental Thermal Shield > --- WEAPON ----------- Advanced KE Penetrator Advanced KE Penetrator > --- INVENTORY -------- Antigrav System Xenon Bombardment Thruster Advanced Heat Sink Matter Compressor Advanced Weight Redist. System Centrium Medium Armor Plating Centrium Medium Armor Plating Force Field Advanced KE Penetrator [Rating: 103] Favorites ----------- Power Quantum Reactor Engine Light Ion Engine Power Core Light Nuclear Core Reactor Quantum Reactor Propulsion Carbon-fiber Leg Leg Carbon-fiber Leg Wheel Compact Wheel Hover Unit Combat Airjet Flight Unit Flight Unit Utility Medium Storage Unit Device Advanced Weight Redist. System Storage Medium Storage Unit Processor Improved Signal Interpreter Hackware System Shield Protection Centrium Medium Armor Plating Weapon Great Maul Energy Gun Heavy Laser Ballistic Gun Advanced KE Penetrator Ballistic Cannon Magnetic Acceleration Cannon Launcher Grenade Launcher Impact Weapon Great Maul Slashing Weapon Chainsword Build | -11 -10 -10 -10 -9 -8 -8 -7 -7 -7 -7 -6 -6 -6 -6 -6 -6 -5 ------- Run | Scr Mat Min Exi Min Mat Sto Fac Low Low Dat Pro Fac Ext Cet Arc Hub Fac Slots Evolved 10 | . . . . . 4 . 2 . . . . 2 . . . . 2 Power 1 | . . . . . . . 1 . . . . . . . . . . Propulsion 6 | . . . . . 4 . . . . . . 1 . . . . 1 Utility 3 | . . . . . . . 1 . . . . 1 . . . . 1 Weapon . | . . . . . . . . . . . . . . . . . . Parts Attached 154 | 6 6 . . 3 5 3 18 2 5 3 1 6 48 15 . 12 21 Power 24 | 1 1 . . . 1 . 2 . 1 2 . 2 6 3 . 3 2 Engine 7 | 1 1 . . . 1 . . . . . . 1 . 2 . 1 . Core 11 | . . . . . . . 2 . 1 2 . 1 5 . . . . Reactor 6 | . . . . . . . . . . . . . 1 1 . 2 2 Propulsion 54 | 2 2 . . 2 2 2 7 1 1 . . 2 16 5 . 3 9 Treads . | . . . . . . . . . . . . . . . . . . Leg 27 | . . . . . . . 1 . . . . . 13 5 . 3 5 Wheel 5 | 2 . . . . . . 1 . . . . . 2 . . . . Hover 7 | . . . . . . . 1 . 1 . . 2 . . . . 3 Flight 15 | . 2 . . 2 2 2 4 1 . . . . 1 . . . 1 Utility 48 | 1 1 . . 1 2 . 7 . 2 1 1 1 14 5 . 2 10 Device 27 | . . . . 1 . . 3 . 1 1 1 1 8 3 . 2 6 Storage 6 | 1 . . . . 2 . 2 . 1 . . . . . . . . Processor 5 | . . . . . . . 2 . . . . . 2 . . . 1 Hackware 3 | . . . . . . . . . . . . . 3 . . . . Protection 7 | . 1 . . . . . . . . . . . 1 2 . . 3 Artifact . | . . . . . . . . . . . . . . . . . . Weapon 28 | 2 2 . . . . 1 2 1 1 . . 1 12 2 . 4 . Energy Gun 7 | 2 . . . . . . . . . . . . 5 . . . . Energy Cannon . | . . . . . . . . . . . . . . . . . . Ballistic Gun 5 | . . . . . . . . . . . . . 2 . . 3 . Ballistic Cannon 4 | . . . . . . . . . . . . . 2 1 . 1 . Launcher 9 | . 2 . . . . . 1 1 1 . . 1 2 1 . . . Special Weapon . | . . . . . . . . . . . . . . . . . . Impact Weapon 2 | . . . . . . 1 1 . . . . . . . . . . Slashing Weapon 1 | . . . . . . . . . . . . . 1 . . . . Piercing Weapon . | . . . . . . . . . . . . . . . . . . Special Melee Weapon . | . . . . . . . . . . . . . . . . . . Unidentified Prototypes 3 | . . . . . . . . . . . . . . 1 . 1 1 Corrupted Parts 4 | . . . . . . . . . . . . . . . . 4 . System Corruption 19 | . . . . . . . . . . . . . . . . 19 . Parts Lost 55 | . 5 1 . . . 3 6 . 1 1 . 2 12 7 . 1 16 Power 7 | . 1 . . . . . 1 . . . . 1 2 1 . . 1 Propulsion 32 | . 2 1 . . . 2 5 . 1 1 . 1 4 5 . 1 9 Utility 11 | . 1 . . . . . . . . . . . 3 1 . . 6 Weapon 5 | . 1 . . . . 1 . . . . . . 3 . . . . Highest Loss Streak 11 | . 2 1 . . . 3 5 . 1 1 . 1 4 6 . 1 11 To Critical Strikes 3 | . . . . . . . . . . . . . 1 2 . . . Average Slot Usage (%) 74 | . 83 52 28 42 70 70 50 64 68 67 56 63 88 88 93 97 87 Engine 2 | . 12 . . . 9 9 1 . . . . 1 . 5 6 5 . Core 4 | . . . . . . . 3 7 10 6 7 6 10 1 . . . Reactor 2 | . . . . . . . . . . . . . . 4 6 5 9 Leg 14 | . . . . . . . 1 . . . . . 21 36 40 44 33 Wheel 2 | . 18 . . . . . 1 . . . . . 2 . . . . Hover 5 | . . . . . . . . 7 8 15 15 18 10 . . . 5 Flight 7 | . 1 25 14 27 36 36 13 17 18 15 7 6 2 . . . . Device 6 | . . . . . 9 9 5 7 7 10 10 16 7 5 6 6 10 Storage 6 | . 13 . . . 7 9 7 7 7 7 7 6 6 6 6 6 4 Processor 2 | . . . . . . . 4 7 7 3 . . . 1 . . 4 Hackware 3 | . . . . . . . . . . . . . 10 6 6 6 4 Protection 1 | . 11 . . . . . . . . . . . . 4 6 6 1 Energy Gun 1 | . 10 . . . . . . . . . . . 2 . . . . Ballistic Gun 2 | . . . . . . . . . . . . . 4 . . . 9 Ballistic Cannon 1 | . . . . . . . . . . . . . . 11 13 11 . Launcher 2 | . 13 25 14 14 9 4 . . . . . . . 1 . . . Impact Weapon 2 | . . . . . . 3 6 7 7 7 7 6 . . . . . Naked Turns 19 | . . . . . . . . . . . . . . . . . 19 Heaviest Build 77 | 11 22 6 3 4 12 13 21 14 28 19 20 35 53 75 68 69 77 Greatest Support 130 | 26 26 8 4 8 16 20 22 20 23 27 27 51 130 130 104 119 119 Greatest Overweight (x) 4 | 1 4 . . . . . 3 . 1 . . . 2 1 . . 1 Average Overweight (x) . | . . . . . . . . . . . . . . . . . . Largest Inventory Capacity 10 | 8 8 5 5 5 10 8 10 8 10 10 10 10 10 10 10 10 10 Average Capacity 8 | 7 7 5 5 5 7 8 8 8 8 10 10 10 10 10 10 10 9 Most Carried 10 | . 5 5 5 5 4 4 8 8 9 9 8 10 10 10 10 10 10 Average Carried 7 | . 3 5 5 4 1 1 7 7 7 8 7 9 9 9 10 9 8 Final Capacity 10 | 8 5 5 5 5 8 8 8 8 10 10 10 10 10 10 10 10 5 Final Carried 10 | . 5 5 5 5 1 4 8 8 9 8 7 10 10 10 10 9 5 Class Distribution -------------------- 44% | Scavenger-Mutant 37% | Mutant 5% | Sprinter 5% | Scavenger-Sprinter 4% | Infiltrator-Mutant Dominant Class ---------------- Mutant | -10/Materials Mutant | -10/Mines Mutant | -10/Exiles Mutant | -9/Mines Scavenger-Sprinter | -8/Materials Scavenger-Sprinter | -8/Storage Mutant | -7/Factory Mutant | -7/Lower Caves Mutant | -7/Lower Caves Mutant | -7/Data Miner Mutant | -6/Proximity Caves Infiltrator-Mutant | -6/Factory Scavenger-Mutant | -6/Extension Scavenger-Mutant | -6/Cetus Scavenger-Mutant | -6/Archives Scavenger-Mutant | -6/Hub_04(d) Scavenger-Mutant | -5/Factory Resources | -11 -10 -10 -10 -9 -8 -8 -7 -7 -7 -7 -6 -6 -6 -6 -6 -6 -5 ----------- Run | Scr Mat Min Exi Min Mat Sto Fac Low Low Dat Pro Fac Ext Cet Arc Hub Fac Matter Collected 3467 | 140 290 . . 205 . 125 74 26 255 . 10 . 1250 314 142 310 326 Remotely . | . . . . . . . . . . . . . . . . . . Salvage Created 2591 | . 360 47 . 35 . 15 211 39 41 . . 45 931 322 . 222 323 Parts 164 | . 39 1 . 9 . 6 9 6 4 . . 6 43 13 . 9 19 Haulers Intercepted 1 | . 1 . . . . . . . . . . . . . . . . Recyclers Shooed 1 | . 1 . . . . . . . . . . . . . . . . Parts Field Recycled . | . . . . . . . . . . . . . . . . . . Retrieved Matter . | . . . . . . . . . . . . . . . . . . Parts Self-Destructed 9 | . . . . . . . . 3 6 . . . . . . . . Prevented 2 | . . . . . . . . . 2 . . . . . . . . Kills | -11 -10 -10 -10 -9 -8 -8 -7 -7 -7 -7 -6 -6 -6 -6 -6 -6 -5 ------- Run | Scr Mat Min Exi Min Mat Sto Fac Low Low Dat Pro Fac Ext Cet Arc Hub Fac Combat Hostiles Destroyed 68 | . 15 2 . 5 . 3 5 3 4 . . 4 16 7 . . 4 Melee 4 | . . . . . . . 2 . . . . . 2 . . . . Guns 15 | . 4 . . . . . . . . . . . 7 . . . 4 Cannons 4 | . . . . . . . . . . . . . . 4 . . . AOE 44 | . 11 2 . 5 . 3 3 3 4 . . 4 6 3 . . . Classes Destroyed 14 | . 6 . . 1 . . 4 . . . . . . 1 . 1 1 Worker 4 | . 2 . . . . 2 . . . . . . . . . . . Builder 7 | . 2 . . 1 . . 1 . . . . 1 1 . . . 1 Hauler 1 | . 1 . . . . . . . . . . . . . . . . Recycler 3 | . 1 . . . . . 1 . . . . . 1 . . . . Mechanic 1 | . . . . . . . 1 . . . . . . . . . . Operator 4 | . . . . . . . 1 . . . . . 2 . . 1 . Watcher 4 | . . . . . . . . . . . . . . . . 4 . Swarmer 29 | . 6 . . 4 . 3 3 3 4 . . 4 2 . . . . Grunt 22 | . 9 2 . . . . . . . . . . 7 2 . . 2 Brawler 1 | . . . . . . . . . . . . . . 1 . . . Sentry 4 | . . . . . . . 1 . . . . . 3 . . . . Hunter 5 | . . . . . . . 1 . . . . . 4 . . . . Programmer 2 | . . . . . . . . . . . . . . . . . 2 Cetus Guard 4 | . . . . . . . . . . . . . . 4 . . . Enhanced Grunt 2 | . . . . . . . . . . . . . . . . 1 1 Assembled 1 | . . . . 1 . . . . . . . . . . . . . Thug 1 | . . . . . . . . . . . . . . 1 . . . Best Kill Streak 9 | . 9 2 . 4 . 5 4 3 4 . . 5 6 5 . 5 2 Combat Bots Only 7 | . 7 2 . 4 . 3 3 3 4 . . 4 6 5 . . 2 Max Kills in Single Turn 5 | . 3 2 . 2 . 4 2 1 2 . . 3 4 2 . 5 1 Gunslinging . | . . . . . . . . . . . . . . . . . . Exploded 4 | . 2 2 . 2 . 3 2 1 2 . . 3 4 2 . . . Melee 1 | . . . . . . . 1 . . . . . 1 . . . . Uniques/NPCs Destroyed . | . . . . . . . . . . . . . . . . . . Combat | -11 -10 -10 -10 -9 -8 -8 -7 -7 -7 -7 -6 -6 -6 -6 -6 -6 -5 -------- Run | Scr Mat Min Exi Min Mat Sto Fac Low Low Dat Pro Fac Ext Cet Arc Hub Fac Damage Taken 8233 | . 376 10 . 117 40 152 877 62 149 43 . 372 1854 1140 114 420 2507 Core 2258 | . 24 . . 75 26 22 495 16 36 . . 113 316 119 . 11 1005 Absorbed by Shields 260 | . . . . . . . . . . . . . 61 126 . . 73 Redirected to Shielding 7 | . . . . . . . . . . . . . 7 . . . . Regen/Repaired (Parts) 227 | . . . . . . . 140 . . . . . . . . . 87 Core Remaining (%) 61 | 100 . . . 60 . 91 . . . . 21 . . . . 34 . Volleys Fired 185 | . 27 2 . 5 6 1 2 3 5 . . 2 57 32 11 11 21 Largest 2 | . 2 2 . 1 1 1 1 1 1 . . 1 2 2 2 2 2 Hottest 149 | . 70 60 . 30 30 30 39 39 39 . . 39 149 106 106 106 70 Shots Fired 274 | . 38 4 . 5 6 1 2 3 5 . . 2 87 42 21 19 39 Gun 131 | . 16 . . . . . . . . . . . 73 . . 3 39 Cannon 76 | . . . . . . . . . . . . . . 39 21 16 . Launcher 67 | . 22 4 . 5 6 1 2 3 5 . . 2 14 3 . . . Special . | . . . . . . . . . . . . . . . . . . Kinetic 146 | . . . . . . . . . . . . . 28 39 21 19 39 Thermal 45 | . . . . . . . . . . . . . 45 . . . . Explosive 67 | . 22 4 . 5 6 1 2 3 5 . . 2 14 3 . . . Electromagnetic 16 | . 16 . . . . . . . . . . . . . . . . Robot Hit Streak 8 | . 4 3 . 4 . . 1 . 2 . . . 8 8 3 4 7 Robot Miss Streak 6 | . 2 . . 1 . . 1 . 1 . . 2 6 2 3 5 4 Penetration Max 1 | . . . . . . . . . . . . . 1 . . . 1 Secondary Targets 1 | . . . . . . . . . . . . . . . . . 1 Max Gunslinging Chain 1 | . . . . . . . . . . . . . . . . . 1 Shots Hit Robots 176 | . 15 3 . 3 . . 21 . 2 1 . . 65 35 12 4 15 Core Hits 194 | . 34 4 . 6 . 8 8 4 5 . . 7 72 20 4 11 11 Critical Kills 5 | . . . . . . . 1 . . . . . 1 . . . 3 Critical Parts Destroyed 6 | . . . . . . . 3 . . . . . . . . . 3 Critical Strikes 17 | . . . . . . . 5 . . . . . 2 2 . 1 7 Burn 1 | . . . . . . . . . . . . . 1 . . . . Destroy 8 | . . . . . . . . . . . . . 1 . . . 7 Blast 3 | . . . . . . . . . . . . . . 2 . 1 . Smash 5 | . . . . . . . 5 . . . . . . . . . . Melee Attacks 49 | . . . . . . 3 28 . . 1 1 3 13 . . . . Impact 42 | . . . . . . 3 28 . . 1 1 3 6 . . . . Slashing 7 | . . . . . . . . . . . . . 7 . . . . Piercing . | . . . . . . . . . . . . . . . . . . Sneak Attacks 4 | . . . . . . . 2 . . 1 . . 1 . . . . Combat Hostiles . | . . . . . . . . . . . . . . . . . . Follow-up Attacks . | . . . . . . . . . . . . . . . . . . Damage Inflicted 10873 | . 1381 154 . 289 . 366 1252 200 474 91 . 317 2422 1822 464 1025 616 Guns 1976 | . 122 . . . . . . . . . . . 1238 . . . 616 Cannons 1542 | . . . . . . . . . . . . . . 965 464 113 . Explosions 6080 | . 1259 154 . 289 . 366 375 200 474 . . 317 884 857 . 905 . Melee 1268 | . . . . . . . 877 . . 91 . . 300 . . . . Ramming 7 | . . . . . . . . . . . . . . . . 7 . Kinetic 2647 | . . . . . . . . . . . . . 489 965 464 113 616 Thermal 791 | . 42 . . . . . . . . . . . 749 . . . . Explosive 5133 | . 1217 154 . 289 . 366 375 200 474 . . 317 884 857 . . . Electromagnetic 1027 | . 122 . . . . . . . . . . . . . . 905 . Impact 1032 | . . . . . . . 877 . . 91 . . 64 . . . . Slashing 236 | . . . . . . . . . . . . . 236 . . . . Piercing . | . . . . . . . . . . . . . . . . . . Highest Corruption 26 | . . . . . . . . . . . . . 5 5 5 26 6 Average Corruption 4 | . . . . . . . . . . . . . 5 5 5 6 2 Corruption Purged . | . . . . . . . . . . . . . . . . . . Corruption Blocked . | . . . . . . . . . . . . . . . . . . Effects 43 | . . . . . . . . . . . . . 18 12 1 7 5 Message Errors 13 | . . . . . . . . . . . . . 4 3 . 3 3 Matter Fused 5 | . . . . . . . . . . . . . 2 1 . 2 . Heat Flow Errors 4 | . . . . . . . . . . . . . 3 1 . . . Energy Discharges 6 | . . . . . . . . . . . . . 2 3 . 1 . Parts Rejected 2 | . . . . . . . . . . . . . 1 1 . . . Data Loss (minor) 7 | . . . . . . . . . . . . . 5 2 . . . Data Loss (major) 2 | . . . . . . . . . . . . . 1 . . 1 . Misfires 2 | . . . . . . . . . . . . . . . . . 2 Alerts 1 | . . . . . . . . . . . . . . 1 . . . Weapon Failures 1 | . . . . . . . . . . . . . . . 1 . . Overload Shots . | . . . . . . . . . . . . . . . . . . Overflow Damage 473 | . 10 . . 17 . 40 172 24 16 . . . 109 21 . 64 . Projectiles . | . . . . . . . . . . . . . . . . . . Explosions 287 | . 10 . . 17 . 40 . 24 16 . . . 95 21 . 64 . Melee 186 | . . . . . . . 172 . . . . . 14 . . . . Knockbacks 9 | . . . . . . . 2 . . 1 . . 1 . 5 . . Impact 4 | . . . . . . . 2 . . 1 . . 1 . . . . Kinetic 5 | . . . . . . . . . . . . . . . 5 . . Secondary . | . . . . . . . . . . . . . . . . . . Self-Inflicted Damage 360 | . 36 . . 21 . 33 62 . 50 . . . 49 . . 100 9 Shots 13 | . 2 . . 1 . 2 2 . 1 . . . 3 . . 1 1 Rammed . | . . . . . . . . . . . . . . . . . . Targets Rammed 1 | . . . . . . . . . . . . . . . . 1 . Kicked 1 | . . . . . . . . . . . . . . . . 1 . Crushed . | . . . . . . . . . . . . . . . . . . Highest Temperature 454 | . 136 2 . . 17 3 . . 28 . . . 327 303 240 144 454 Average Temperature 107 | . 37 2 . . 8 2 . . 11 . . . 124 160 100 58 142 Received Heat Transfer 1816 | . 105 6 . 24 36 27 126 . 6 . . 33 371 192 18 66 806 Effects 9 | . . . . . . . . . . . . . 5 2 . . 2 Shutdowns 2 | . . . . . . . . . . . . . 1 . . . 1 Energy Bleed 1 | . . . . . . . . . . . . . 1 . . . . Interference 5 | . . . . . . . . . . . . . 3 2 . . . Damage (minor) 1 | . . . . . . . . . . . . . . . . . 1 Siege Activations . | . . . . . . . . . . . . . . . . . . Robots Corrupted 1 | . . . . . . . . . . . . . . . . 1 . Combat Hostiles . | . . . . . . . . . . . . . . . . . . Parts Fried 13 | . . . . . . . 4 . . . . . . 1 . 8 . Impact Corruptions 6 | . . . . . . . 5 . . . . . 1 . . . . Robots Melted 1 | . . . . . . . . . . . . . 1 . . . . Combat Hostiles 1 | . . . . . . . . . . . . . 1 . . . . Parts Melted 9 | . . . . . . . . . . . . . 9 . . . . Heat Transferred 1768 | . 50 . . . . . . . . . . . 1718 . . . . Parts Sabotaged . | . . . . . . . . . . . . . . . . . . Parts Stolen . | . . . . . . . . . . . . . . . . . . Parts Stripped . | . . . . . . . . . . . . . . . . . . Power Chain Reactions 1 | . 1 . . . . . . . . . . . . . . . . Missiles Intercepted . | . . . . . . . . . . . . . . . . . . Alert | -11 -10 -10 -10 -9 -8 -8 -7 -7 -7 -7 -6 -6 -6 -6 -6 -6 -5 ------- Run | Scr Mat Min Exi Min Mat Sto Fac Low Low Dat Pro Fac Ext Cet Arc Hub Fac Peak Influence 1103 | . 816 361 . 185 203 343 438 . . . . 169 739 936 598 1103 1038 Initial 530 | . . 240 . . 72 85 155 . . . . 28 63 413 374 209 530 Average 348 | . 405 257 . 156 141 228 239 . . . . 85 143 601 556 543 741 Maximum Alert Level 4 | . 3 1 . . 1 1 2 . . . . . 3 3 2 4 3 Low Security (%) 39 | 100 19 . . 100 86 41 23 . . . . 100 78 . . . . Level 1 23 | . 25 100 . . 13 58 74 . . . . . 16 5 9 20 . Level 2 23 | . 49 . . . . . 1 . . . . . . 52 90 74 47 Level 3 13 | . 5 . . . . . . . . . . . 3 42 . 4 52 Level 4 . | . . . . . . . . . . . . . . . . 1 . Level 5 . | . . . . . . . . . . . . . . . . . . High Security . | . . . . . . . . . . . . . . . . . . Max Security . | . . . . . . . . . . . . . . . . . . Squads Dispatched 23 | . 3 . . . . . 1 . . . . 3 3 1 . 7 5 Investigation 3 | . . . . . . . . . . . . . 1 1 . . 1 Extermination 3 | . . . . . . . . . . . . 1 . . . 1 1 Reinforcement 12 | . 3 . . . . . 1 . . . . 2 2 . . 2 2 Assault 1 | . . . . . . . . . . . . . . . . . 1 Garrison 4 | . . . . . . . . . . . . . . . . 4 . Intercept . | . . . . . . . . . . . . . . . . . . Searches Triggered . | . . . . . . . . . . . . . . . . . . Construction Impeded 3 | . . . . . . . . . . . . 1 . . . 1 1 Haulers Reinforced . | . . . . . . . . . . . . . . . . . . Active Scanning Responses . | . . . . . . . . . . . . . . . . . . Cargo Convoy Interrupts . | . . . . . . . . . . . . . . . . . . Stealth | -11 -10 -10 -10 -9 -8 -8 -7 -7 -7 -7 -6 -6 -6 -6 -6 -6 -5 --------- Run | Scr Mat Min Exi Min Mat Sto Fac Low Low Dat Pro Fac Ext Cet Arc Hub Fac Distress Signals 7 | . . . . 1 . . 1 . . . . . 2 2 . 1 . Communications Jammed 21 | . . . . . . . . . . . . . 21 . . . . Distress Signals 21 | . . . . . . . . . . . . . 21 . . . . Times Spotted 212 | . 25 2 . 8 4 8 13 3 7 4 2 14 42 16 14 10 40 Peak Tracking Total 20 | . 5 2 . 7 4 7 7 3 4 3 3 7 6 8 2 10 20 Tactical Retreats 18 | . . . . 1 . . 6 . . . 2 3 4 . . 1 1 Traps | -11 -10 -10 -10 -9 -8 -8 -7 -7 -7 -7 -6 -6 -6 -6 -6 -6 -5 ------- Run | Scr Mat Min Exi Min Mat Sto Fac Low Low Dat Pro Fac Ext Cet Arc Hub Fac Traps Triggered 8 | . 1 . . . . 1 1 . . . . . 1 . . 3 1 Indirectly 1 | . . . . . . . . . . . . . . . . 1 . Trap Hack Attempts . | . . . . . . . . . . . . . . . . . . Triggered . | . . . . . . . . . . . . . . . . . . Disarmed . | . . . . . . . . . . . . . . . . . . Reprogrammed . | . . . . . . . . . . . . . . . . . . Reused 1 | . . . . . . . . . . 1 . . . . . . . Traps Extracted . | . . . . . . . . . . . . . . . . . . Installed 1 | . . . . . . . . . . 1 . . . . . . . Triggered 3 | . . . . . . . . . 2 . . . 1 . . . . Most Traps Carried 1 | . . . . . . . . . 1 1 . . . . . . . Machines | -11 -10 -10 -10 -9 -8 -8 -7 -7 -7 -7 -6 -6 -6 -6 -6 -6 -5 ---------- Run | Scr Mat Min Exi Min Mat Sto Fac Low Low Dat Pro Fac Ext Cet Arc Hub Fac Machines Disabled 30 | . 4 . . . 1 4 1 . . 1 . . 3 1 2 11 2 Max in Single Turn 9 | . 1 . . . 1 1 1 . . 1 . . 1 . 1 9 2 Network Hub 1 | . . . . . . . . . . . . . . . . 1 . Machines Sabotaged . | . . . . . . . . . . . . . . . . . . Garrisons Compromised . | . . . . . . . . . . . . . . . . . . Overloaded Fab Kills . | . . . . . . . . . . . . . . . . . . Hacking | -11 -10 -10 -10 -9 -8 -8 -7 -7 -7 -7 -6 -6 -6 -6 -6 -6 -5 --------- Run | Scr Mat Min Exi Min Mat Sto Fac Low Low Dat Pro Fac Ext Cet Arc Hub Fac Machines Accessed 41 | . . . 1 . 1 2 11 . . 4 . 1 14 1 . 3 3 Terminals 25 | . . . . . 1 2 3 . . . . 1 14 1 . 2 1 Fabricators 4 | . . . . . . . 3 . . . . . . . . . 1 Repair Stations 4 | . . . . . . . 3 . . . . . . . . . 1 Recycling Units . | . . . . . . . . . . . . . . . . . . Scanalyzers 1 | . . . . . . . 1 . . . . . . . . . . Garrison Access 2 | . . . . . . . 1 . . . . . . . . 1 . Total Hacks 133 | . . . 2 . 6 7 22 . . 29 . 2 44 6 . 6 9 Successful 81 | . . . 2 . 4 3 13 . . 29 . 1 21 . . 3 5 Failed 52 | . . . . . 2 4 9 . . . . 1 23 6 . 3 4 Catastrophic 8 | . . . . . . . 1 . . . . . 2 2 . 2 1 Database Lockouts . | . . . . . . . . . . . . . . . . . . Manual 38 | . . . 1 . 2 3 7 . . . . . 19 1 . 1 4 Terminals 79 | . . . . . 6 7 6 . . . . 2 44 6 . 4 4 Fabricators 8 | . . . . . . . 6 . . . . . . . . . 2 Repair Stations 11 | . . . . . . . 8 . . . . . . . . . 3 Recycling Units . | . . . . . . . . . . . . . . . . . . Scanalyzers 1 | . . . . . . . 1 . . . . . . . . . . Garrison Access 3 | . . . . . . . 1 . . . . . . . . 2 . Terminal Hacks 56 | . . . 2 . 3 3 3 . . 29 . 1 12 . . 2 1 Record 14 | . . . 2 . . . . . . 11 . . 1 . . . . Part Schematic 10 | . . . . . . . . . . 10 . . . . . . . Robot Schematic 5 | . . . . . . . . . . 5 . . . . . . . Prototype ID Bank 4 | . . . . . . . . . . 3 . . 1 . . . . Open Door 8 | . . . . . . 1 . . . . . . 7 . . . . Branch Access Points 1 | . . . . . . . 1 . . . . . . . . . . Emergency Access Points 1 | . . . . . . . . . . . . . . . . 1 . Terminal Index 1 | . . . . . . . . . . . . . 1 . . . . Alert Level 2 | . . . . . 1 . . . . . . . . . . . 1 Unreport Threat 3 | . . . . . . . . . . . . 1 2 . . . . Locate Traps 3 | . . . . . 1 1 1 . . . . . . . . . . Zone Layout 4 | . . . . . 1 1 1 . . . . . . . . 1 . Fabricator Hacks 1 | . . . . . . . 1 . . . . . . . . . . Network Status 1 | . . . . . . . 1 . . . . . . . . . . Repair Station Hacks 7 | . . . . . . . 5 . . . . . . . . . 2 Scan Component 4 | . . . . . . . 3 . . . . . . . . . 1 Repair 3 | . . . . . . . 2 . . . . . . . . . 1 Recycling Unit Hacks . | . . . . . . . . . . . . . . . . . . Scanalyzer 1 | . . . . . . . 1 . . . . . . . . . . Insert Component 1 | . . . . . . . 1 . . . . . . . . . . Garrison Access Hacks . | . . . . . . . . . . . . . . . . . . Unauthorized Hacks 16 | . . . . . 1 . 3 . . . . . 9 . . 1 2 Terminals 12 | . . . . . 1 . . . . . . . 9 . . 1 1 Track 2 | . . . . . . . . . . . . . 2 . . . . Assimilate 1 | . . . . . . . . . . . . . 1 . . . . Botnet 7 | . . . . . 1 . . . . . . . 4 . . 1 1 Disrupt 1 | . . . . . . . . . . . . . 1 . . . . Operators 1 | . . . . . . . . . . . . . 1 . . . . Fabricators 3 | . . . . . . . 2 . . . . . . . . . 1 Fabnet 3 | . . . . . . . 2 . . . . . . . . . 1 Repair Stations 1 | . . . . . . . 1 . . . . . . . . . . Mechanics 1 | . . . . . . . 1 . . . . . . . . . . Recycling Units . | . . . . . . . . . . . . . . . . . . Scanalyzers . | . . . . . . . . . . . . . . . . . . Garrison Access . | . . . . . . . . . . . . . . . . . . Data Cores Recovered . | . . . . . . . . . . . . . . . . . . Used . | . . . . . . . . . . . . . . . . . . Hacking Detections 23 | . . . . . 1 1 8 . . . . 1 8 1 . 2 1 Full Trace Events 2 | . . . . . . . . . . . . . 1 1 . . . Feedback Events . | . . . . . . . . . . . . . . . . . . Feedback Blocked . | . . . . . . . . . . . . . . . . . . Robot Schematics Acquired 5 | . . . . . . . . . . 5 . . . . . . . Robots Built . | . . . . . . . . . . . . . . . . . . Authchips . | . . . . . . . . . . . . . . . . . . Time . | . . . . . . . . . . . . . . . . . . Total Robot Build Rating . | . . . . . . . . . . . . . . . . . . Part Schematics Acquired 10 | . . . . . . . . . . 10 . . . . . . . Parts Built . | . . . . . . . . . . . . . . . . . . Authchips . | . . . . . . . . . . . . . . . . . . Time . | . . . . . . . . . . . . . . . . . . Total Part Build Rating . | . . . . . . . . . . . . . . . . . . Parts Repaired 3 | . . . . . . . 2 . . . . . . . . . 1 Time 125 | . . . . . . . 51 . . . . . . . . . 74 Parts Recycled . | . . . . . . . . . . . . . . . . . . Recycled Matter . | . . . . . . . . . . . . . . . . . . Retrieved Matter . | . . . . . . . . . . . . . . . . . . Retrieved Components . | . . . . . . . . . . . . . . . . . . Parts Scanalyzed . | . . . . . . . . . . . . . . . . . . Part Schematics Acquired . | . . . . . . . . . . . . . . . . . . Parts Damaged . | . . . . . . . . . . . . . . . . . . Bothacking | -11 -10 -10 -10 -9 -8 -8 -7 -7 -7 -7 -6 -6 -6 -6 -6 -6 -5 ------------ Run | Scr Mat Min Exi Min Mat Sto Fac Low Low Dat Pro Fac Ext Cet Arc Hub Fac Used RIF Installer . | . . . . . . . . . . . . . . . . . . Robots Hacked 2 | . . . . . . . . . . . . . 2 . . . . Non-combat . | . . . . . . . . . . . . . . . . . . Combat 2 | . . . . . . . . . . . . . 2 . . . . Robot Hacks Applied . | . . . . . . . . . . . . . . . . . . Relay Couplers Released . | . . . . . . . . . . . . . . . . . . Fabnet Peak Effective % 6 | . . . . . . . . . . . 6 6 6 6 6 6 2 Autooverrided 2 | . . . . . . . . . . . . . 2 . . . . Robots Rewired 5 | . . . . . . . . . . . . . 5 . . . . Allies Hacked . | . . . . . . . . . . . . . . . . . . Hacks Repelled . | . . . . . . . . . . . . . . . . . . Allies | -11 -10 -10 -10 -9 -8 -8 -7 -7 -7 -7 -6 -6 -6 -6 -6 -6 -5 -------- Run | Scr Mat Min Exi Min Mat Sto Fac Low Low Dat Pro Fac Ext Cet Arc Hub Fac Total Allies 25 | . . 3 . . . . . . . . . . 17 5 . . . Largest Group 9 | . . 3 . . . . . . . . . . 9 6 6 5 3 Highest-Rated Group 623 | . . 40 . . . . . . . . . . 387 623 623 480 283 Highest-Rated Ally 159 | . . 16 . . . . . . . . . . 159 159 143 96 96 Total Orders 4 | . . . . . . . . . . . . . . . . 4 . STAY 3 | . . . . . . . . . . . . . . . . 3 . FOLLOW 1 | . . . . . . . . . . . . . . . . 1 . Ally Attacks 290 | . . . . . . . . . . . . . 116 58 23 35 58 Total Damage 8865 | . . . . . . . . . . . . . 2310 1869 791 1517 2378 Kills 53 | . . . . . . . . . . . . . 16 13 4 9 11 Allies Corrupted 1 | . . . . . . . . . . . . . . . . 1 . Allies Melted 2 | . . . . . . . . . . . . . 1 . . . 1 Intel | -11 -10 -10 -10 -9 -8 -8 -7 -7 -7 -7 -6 -6 -6 -6 -6 -6 -5 ------- Run | Scr Mat Min Exi Min Mat Sto Fac Low Low Dat Pro Fac Ext Cet Arc Hub Fac Robot Analysis Total . | . . . . . . . . . . . . . . . . . . Derelict Logs Recovered 5 | . . . . 2 . . . 2 1 . . . . . . . . Drone Launches . | . . . . . . . . . . . . . . . . . . Drone Recoveries . | . . . . . . . . . . . . . . . . . . Exploration | -11 -10 -10 -10 -9 -8 -8 -7 -7 -7 -7 -6 -6 -6 -6 -6 -6 -5 ------------- Run | Scr Mat Min Exi Min Mat Sto Fac Low Low Dat Pro Fac Ext Cet Arc Hub Fac Turns Passed 5611 | 42 410 130 101 223 58 105 726 184 342 81 174 315 1180 337 138 290 775 Spaces Moved 6465 | 38 356 331 252 169 105 208 1070 542 694 144 304 471 754 182 83 197 565 Core 161 | 4 4 . . . . . 104 . . . . . . . . . 49 Treads . | . . . . . . . . . . . . . . . . . . Legs 1346 | . . . . . . . . . . . . . 442 182 83 197 442 Wheels 572 | 34 313 . . . . . 131 . . . . . 94 . . . . Hover 1020 | . . . . . . . . . . 3 304 471 218 . . . 24 Flight 3366 | . 39 331 252 169 105 208 835 542 694 141 . . . . . . 50 Fastest Speed 28 | 50 37 37 40 37 31 28 30 30 30 34 56 56 65 120 120 120 40 Average Speed 63 | 87 91 37 40 37 31 30 44 32 33 34 56 60 107 121 120 120 105 Slowest Speed 260 | 100 250 40 40 40 31 31 200 34 110 56 56 65 260 190 120 120 190 Overloaded Moves . | . . . . . . . . . . . . . . . . . . Propulsion Burnouts . | . . . . . . . . . . . . . . . . . . Robots Hopped 15 | . . 1 . . 1 5 5 . . . . . . . . . 3 Cave-ins Triggered 1 | . . . . . . . . . . . . . 1 . . . . Exploration Rate (%) 47 | 4 85 64 67 32 12 41 32 67 67 78 52 12 67 58 76 21 12 Regions Visited 17 Branch Regions 12 Pre-discovered Areas 2 | . . . . . . . . . 1 1 . . . . . . . Known Exits Taken 5 | . . . . . 1 . 1 1 1 . 1 . . . . . . Unknown Exits Taken 12 | 1 1 1 1 1 . 1 . . . 1 . 1 1 1 1 1 . Scrap Searched 6 | . . . . 1 . . . 1 4 . . . . . . . . Spaces Dug 138 | . . . . . . . 6 . . . 1 3 120 . . 2 6 Terrain Destroyed 940 | . 142 33 . 48 45 23 13 31 67 . 1 27 212 61 2 181 54 Melee 12 | . . . . . . . 6 . . . 1 3 2 . . . . Projectile 28 | . . . . . . . . . . . . . . 6 2 7 13 AOE 900 | . 142 33 . 48 45 23 7 31 67 . . 24 210 55 . 174 41 Terrain Rammed . | . . . . . . . . . . . . . . . . . . Walls Destroyed . | . . . . . . . . . . . . . . . . . . Machines Disabled . | . . . . . . . . . . . . . . . . . . Actions | -11 -10 -10 -10 -9 -8 -8 -7 -7 -7 -7 -6 -6 -6 -6 -6 -6 -5 --------- Run | Scr Mat Min Exi Min Mat Sto Fac Low Low Dat Pro Fac Ext Cet Arc Hub Fac Total 7558 | 43 400 332 251 324 122 234 1250 547 796 174 305 493 996 253 99 230 709 Wait 515 | . 2 . . 141 8 3 98 . 87 22 . . 55 10 6 3 80 Move 6420 | 37 355 328 251 168 102 197 1059 541 693 143 303 470 752 181 82 197 561 Hop 13 | . . 1 . . 1 5 5 . . . . . . . . . 1 Pick Up 56 | . 6 . . 3 . 4 10 . 2 . . 8 9 5 . 2 7 Fast Attach 90 | 6 5 . . 2 . 2 11 1 2 . . 3 29 12 . 6 11 Attach 31 | . . . . . 4 1 4 1 1 2 1 3 5 1 . 3 5 Detach 20 | . 1 . . . . . 3 1 1 3 . 1 5 . . . 5 Swap 33 | . 1 . . 1 1 . 3 . 2 1 . . 14 2 . 3 5 Drop 75 | . 3 1 . 4 . . 9 . 3 1 . 3 23 10 . 5 13 Fire 185 | . 27 2 . 5 6 1 2 3 5 . . 2 57 32 11 11 21 Melee 49 | . . . . . . 3 28 . . 1 1 3 13 . . . . Ram . | . . . . . . . . . . . . . . . . . . Kick . | . . . . . . . . . . . . . . . . . . Crush . | . . . . . . . . . . . . . . . . . . Escape Stasis 50 | . . . . . . 18 18 . . . . . 14 . . . . Rewire 20 | . . . . . . . . . . . . . 20 . . . . Trap 1 | . . . . . . . . . . 1 . . . . . . . Miscellaneous . | . . . . . . . . . . . . . . . . . . Route ------- -11/Scrapyard -10/Materials (discovered 4 exits: [*Mat x3] / [*Min]) -10/Mines -10/Exiles -9/Mines -8/Materials (discovered 2 exits: *Sto x2) -8/Storage -7/Factory (discovered 3 exits: *Fac / *Low x2) -7/Lower Caves -7/Lower Caves (discovered 2 exits: *Fac / *Dat) -7/Data Miner -6/Proximity Caves -6/Factory (discovered 3 exits: *Fac x2 / *Ext) -6/Extension (discovered 2 exits: *Fac / *Cet) -6/Cetus (discovered 2 exits: *Fac / *Arc) -6/Archives (discovered 2 exits: *Hub x2) -6/Hub_04(d) (discovered 2 exits: *Fac x2) -5/Factory (discovered 1 exit: [*Fac]) History --------- Turn | Location | Event 16 | -11/Scrapyard | Discovered new exit (range 14) 43 | -11/Scrapyard | Entered Materials 147 | -10/Materials | Discovered new exit (range 10) 158 | -10/Materials | Destroyed 7 combat bots 231 | -10/Materials | Discovered new exit (range 16) 310 | -10/Materials | Build established: Mutant 360 | -10/Materials | Discovered new exit (range 13) 438 | -10/Materials | Discovered new exit (range 16) 453 | -10/Materials | Entered Mines 470 | -10/Mines | Deemed a non-threat by the Exiles lab entrance 470 | -10/Mines | Discovered new exit (range 5) 485 | -10/Mines | Met a Derelict bent on vengeance 500 | -10/Mines | Found a hidden stash of uninstalled traps 531 | -10/Mines | Assisted by bots powering up and referring to "LRC-V3" 583 | -10/Mines | Entered Exiles 583 | -10/Exiles | Found Exiles lab destroyed 680 | -10/Exiles | Discovered new exit (range 10) 684 | -10/Exiles | Entered Mines 687 | -9/Mines | Learned Materials security intel 702 | -9/Mines | Learned 2 Materials zone layouts 709 | -9/Mines | Assembled infested the area 714 | -9/Mines | Assisted by a Guerilla fighting off Assembled 905 | -9/Mines | Discovered new exit (range 8) 907 | -9/Mines | Entered Materials 907 | -8/Materials | Evolved 4 slots: Propulsion x4 908 | -8/Materials | Identified exit to Storage 965 | -8/Materials | Entered Storage 1041 | -8/Storage | Discovered new exit (range 16) 1047 | -8/Storage | Lost 3 parts (2n1w) 1070 | -8/Storage | Entered Factory 1070 | -7/Factory | Evolved 2 slots: Power x1, Utility x1 1108 | -7/Factory | Discovered new exit (range 2) 1138 | -7/Factory | Repaired Flight Unit 1278 | -7/Factory | Lost 5 parts (1p4n) 1406 | -7/Factory | Core integrity fell below 50% 1602 | -7/Factory | Repaired Great Maul 1611 | -7/Factory | Discovered new exit (range 15) 1615 | -7/Factory | Identified exit to Factory 1617 | -7/Factory | Identified exit to Lower Caves 1796 | -7/Factory | Entered Lower Caves 1855 | -7/Lower Caves | Learned Factory stockpile data 1904 | -7/Lower Caves | Spotted B-75 Beast 1919 | -7/Lower Caves | Identified exit to Lower Caves 1980 | -7/Lower Caves | Entered another Lower Caves area 1997 | -7/Lower Caves | Discovered exit to Factory (range 5) 2236 | -7/Lower Caves | Attracted the attention of an 0b10 checkpoint 2245 | -7/Lower Caves | Discovered new exit (range 15) 2247 | -7/Lower Caves | Encountered a Warlord checkpoint 2253 | -7/Lower Caves | Identified exit to Data Miner 2322 | -7/Lower Caves | Entered Data Miner 2322 | -7/Data Miner | Discovered new exit (range 6) 2329 | -7/Data Miner | Met Data Miner 2336 | -7/Data Miner | Learned location of Section 7 (-2) 2336 | -7/Data Miner | Acquired the access code to Warlord's prototype stash 2343 | -7/Data Miner | Received God Mode back door access code from Data Miner 2389 | -7/Data Miner | Data Conduit disabled 2403 | -7/Data Miner | Entered Proximity Caves 2572 | -6/Proximity Caves | Discovered exit to Factory (range 11) 2577 | -6/Proximity Caves | Entered Factory 2577 | -6/Factory | Evolved 2 slots: Propulsion x1, Utility x1 2654 | -6/Factory | Discovered new exit (range 11) 2670 | -6/Factory | Discovered new exit (range 15) 2788 | -6/Factory | Discovered new exit (range 15) 2892 | -6/Factory | Entered Extension 2971 | -6/Extension | Rescued a captive Derelict 3297 | -6/Extension | Rescued a captive Derelict 3358 | -6/Extension | Build established: Scavenger-Mutant 3364 | -6/Extension | Crushed by falling debris 3375 | -6/Extension | Rescued a captive Derelict 3377 | -6/Extension | Rescued a captive Derelict 3481 | -6/Extension | Rescued a captive Derelict 3578 | -6/Extension | Lost 4 parts (1p1n1u1w) 3639 | -6/Extension | Lost 3 parts (1p1u1w) 3775 | -6/Extension | Rescued a captive Derelict 3776 | -6/Extension | Rescued a captive Derelict 3847 | -6/Extension | Rescued A7 3945 | -6/Extension | Rescued a captive Derelict 3946 | -6/Extension | Rescued a captive Derelict 3999 | -6/Extension | Discovered new exit (range 10) 4000 | -6/Extension | Discovered new exit (range 6) 4017 | -6/Extension | Disrupted transfer network 4024 | -6/Extension | Disrupted transfer network 4025 | -6/Extension | Core integrity fell below 50% 4072 | -6/Extension | Entered Cetus 4072 | -6/Cetus | Accompanied by 5 allies (A7) 4077 | -6/Cetus | Acquired a Cetus Manufacturing Module code from A7 4093 | -6/Cetus | Spotted Cetus Guard 4093 | -6/Cetus | Spotted Cetus Guard 4095 | -6/Cetus | Spotted Cetus Guard 4099 | -6/Cetus | Spotted Cetus Guard 4108 | -6/Cetus | Allies destroyed Cetus Guard 4109 | -6/Cetus | Destroyed Cetus Guard 4116 | -6/Cetus | Destroyed Cetus Guard 4126 | -6/Cetus | Allies destroyed Cetus Guard 4201 | -6/Cetus | Started Cetus Manufacturing Module 4215 | -6/Cetus | Discovered new exit (range 15) 4226 | -6/Cetus | Manufactured an Enhanced Grunt 4235 | -6/Cetus | Spotted Cetus Guard 4236 | -6/Cetus | Spotted Cetus Guard 4238 | -6/Cetus | Spotted Cetus Guard 4238 | -6/Cetus | Spotted Cetus Guard 4244 | -6/Cetus | Allies destroyed Cetus Guard 4251 | -6/Cetus | Manufactured an Enhanced Grunt 4258 | -6/Cetus | Destroyed Cetus Guard 4272 | -6/Cetus | Destroyed Cetus Guard 4276 | -6/Cetus | Manufactured an Enhanced Grunt 4282 | -6/Cetus | Allies destroyed Cetus Guard 4293 | -6/Cetus | Discovered new exit (range 15) 4301 | -6/Cetus | Manufactured an Enhanced Grunt 4312 | -6/Cetus | Lost 6 parts (1p4n1u) 4315 | -6/Cetus | Met Revision 17 4326 | -6/Cetus | Manufactured an Enhanced Grunt 4409 | -6/Cetus | Entered Archives 4409 | -6/Archives | Accompanied by 6 allies (A7) 4455 | -6/Archives | Discovered new exit (range 14) 4464 | -6/Archives | Unable to access archive contents 4469 | -6/Archives | Discovered new exit (range 14) 4547 | -6/Archives | Entered Hub_04(d) 4547 | -6/Hub_04(d) | Accompanied by 5 allies 4604 | -6/Hub_04(d) | Discovered new exit (range 13) 4616 | -6/Hub_04(d) | Disrupted transfer network 4726 | -6/Hub_04(d) | Discovered new exit (range 5) 4794 | -6/Hub_04(d) | System corruption reached 10% 4822 | -6/Hub_04(d) | Network Hub disabled 4822 | -6/Hub_04(d) | Garrison activated, responded to threat 4833 | -6/Hub_04(d) | Spotted Lightning 4834 | -6/Hub_04(d) | Spotted Lightning 4837 | -6/Hub_04(d) | Entered Factory 4837 | -5/Factory | Accompanied by 3 allies 4837 | -5/Factory | Evolved 2 slots: Propulsion x1, Utility x1 4947 | -5/Factory | Repaired Quantum Reactor 5336 | -5/Factory | Found Prototype Device 5336 | -5/Factory | Identified Exp. Thermal Shield 5353 | -5/Factory | Lost 4 parts (3n1u) 5437 | -5/Factory | First assault squad dispatched 5493 | -5/Factory | Spotted B-75 Beast 5592 | -5/Factory | Core integrity fell below 50% 5597 | -5/Factory | Core integrity fell below 20% 5606 | -5/Factory | Discovered new exit (range 9) 5612 | -5/Factory | Destroyed by P-70 Sage with High-powered Shock Rifle Last Messages --------------- 05582_ G-50 Soldier unfolds itself. 05582_ I-47 Archangel unfolds itself. 05586_ K-01 Serf destroyed. 05587_ R-10 Processor collects Lgt. Ion Engine. 05587_ Dropped Imp. Weapon Cycler. 05588_ Xenon Bombardment Thruster destroyed. 05593_ Adv. Signal Interpreter destroyed. 05593_ Critical hit (Blast). 05594_ Penetrated by Slug. 05594_ R-10 Processor collects Adv. Heat Sink. 05595_ P-70 Sage resets G-50 Soldier, system corruption cleaned. 05596_ Penetrated by Slug. 05597_ Slug penetrates Wall. 05597_ Penetrated by Slug. 05599_ Slug penetrates Wall. 05601_ ALERT: Suspicious intruders detected, dispatching Cutter reinforcements to area. 05606_ EXIT=FOUND 05606_ C-35 Carver destroyed. 05611_ K-01 Serf cleans the Power Conduit. Map ----- +----------------------------------------------------+ | ?????????????????????# # # | | ?????????????????????# " ! # ! | | ?????????????????????# # + | | ?????????????????????# # " | | ?????????????????????# # # | | ?????????????????????# # # " | | ?????????????????????# # # " | | ????????????###+####################/### # " | | ??????????? ! # | | ???????????? ! ##### | | ???????????? #???? | | ???????????? == #???? | | ???????????? =[ #???? | | ????????????? = #########/#########???? | | ?????????????? " " " ##?# !#?????? | | ?????????????? " " " ;#?# #?????? | | ????????????? " " " # ### #?????? | | ????????????? " " " # h / #?????? | | ????????????? " " " # p ### ] #?????? | | ????????????? " " " ## #?# #?????? | | ????????????? " " " # #?# #?????? | | ????????????? " " " # #?# #?????? | | ??????????? " " " # #?# #?????? | | ????????? ; / #?# #?????? | | ????????? #=%=#?# #?????? | | ????????? ! #@H%#?# #?????? | | ????????? #!< #?##############?????? | | ??????????#####+######### #????????????????????? | | ????????????????????????## ##????????????????????? | | ?????????????????????????? #?????????????????????? | | ?????????????????????????? #?????????????????????? | | ?????????????????????????? #?????????????????????? | | ?????????????????????????? #?????????????????????? | | ?????????????????????????? #?????????????????????? | | ?????????????????????????? #?????????????????????? | | ?????????????????????????? #?????????????????????? | | ??????????????????????????? ?????????????????????? | | ???????????????????????????#?????????????????????? | | ?????????????????????????????????????????????????? | | ?????????????????????????????????????????????????? | | ?????????????????????????????????????????????????? | | ?????????????????????????????????????????????????? | | ?????????????????????????????????????????????????? | | ?????????????????????????????????????????????????? | | ?????????????????????????????????????????????????? | | ?????????????????????????????????????????????????? | | ?????????????????????????????????????????????????? | | ?????????????????????????????????????????????????? | | ?????????????????????????????????????????????????? | | ?????????????????????????????????????????????????? | +----------------------------------------------------+ Best States ------------- Heat Dissipation 56 Energy Generation 45 Energy Capacity 600 Matter Stores 300 Matter Capacity 300 Sight Range 16 Robot Scan Range 15 Terrain Scan Range 16 Terrain Scan Density 210 ECM Strength 2 Jamming Range 12 Additional Mass Support 9 Armor Coverage 450 Resistance: TH 30 Utility Shielding 66 Weapon Cycling 20 Phase Shifting 5 Evasion (%) 64 Melee Accuracy 5 Target Analysis 5 Force Boost 20 Offensive Hacking 10 Defensive Hacking 20 Item Schematics ----------------- Combat Drone Bay | -7/Data Miner | Free Lgt. Regenerative Plating | -7/Data Miner | Free Cld. Cesium-ion Thruster | -7/Data Miner | Free Thermal Defense Suite | -7/Data Miner | Free Imp. Heavy Laser | -7/Data Miner | Free Linear Gravjet | -7/Data Miner | Free Adv. Cooling System | -7/Data Miner | Free Disruptor Cannon | -7/Data Miner | Free Triangulator | -7/Data Miner | Free Adv. Trap Scanner | -7/Data Miner | Free Robot Schematics ------------------ R-10 Processor | -7/Data Miner | Free M-14 Sweeper | -7/Data Miner | Free H-66 Slayer | -7/Data Miner | Free A-15 Conveyor | -7/Data Miner | Free B-60 Warrior | -7/Data Miner | Free Fabricated ------------ Nothing Alien Tech Used ----------------- None Achievements -------------- None Challenges ------------ None Game ------ Seed ResetSpikedScanner Manual? 0 Play Time 02:01:05 Cumulative 242.0 hours Start 2022.04.11 @ 23:37:44 End 2022.04.13 @ 00:27:41 Sessions 5 Manual Loads 0 Difficulty Rogue Special Mode None Game No. 112 Rogue 108 Adventurer 0 Explorer 4 Win Type - Total 14 Types 4/0/2/2/1/2/3/0/0 Lore% 71 Gallery% 79 Achievement% 69 Wizard Run 0 Options --------- ASCII 0 Keyboard 0 Movement Mouse Keybinds 0 Fullscreen 1 Font 18/SmallcapsGlow Map View 76x50 Tactical HUD 1 Map Filters NONE Filters NONE Steam 1 RUN: d7e65934-fd9c-4c6d-9dc4-8fe739dd4f0e